[Event "Faroese-ch Candidates 2025"]
[Site "Torshavn"]
[Date "2025.04.17"]
[Round "6.1"]
[White "Dahl, Karl M"]
[Black "Lamhauge, Eydun"]
[Result "1/2-1/2"]
[Annotator "NA RC"]
[ECO "D08"]
[WhiteElo "1772"]
[BlackElo "1829"]
[PlyCount "80"]
[EventDate "2025.04.11"]
[EventType "tourn"]
[EventCountry "FAI"]
[SourceTitle "playchess.com"]
[Source "ChessBase"]
[SourceQuality "1"]
[TimeControl "40/5400+30:900+30"]

1. d4 {[%emt 0:00:03]} d5 {[%emt 0:06:45]} 2. c4 {[%emt 0:00:31]} e5 {[%emt 0:00:59]} 3. dxe5 {[%emt 0:00:16]} d4 {[%emt 0:00:11]} 4. a3 {[%emt 0:00:41]} Be6 {[%emt 0:03:26]} 5. Bf4 {[%emt 0:04:42]} Bxc4 {[%emt 0:01:50]} 6. Nf3 {[%emt 0:00:51]} Nc6 {[%emt 0:01:48]} 7. Nbd2 {[%emt 0:00:45]} Bd5 {[%emt 0:03:52]} 8. b4 {[%emt 0:10:57]} Nge7 {[%emt 0:09:14]} 9. b5 {[%emt 0:03:56]} Na5 {[%emt 0:02:29]} 10. Qa4 {[%emt 0:03:27]} c5 {[%emt 0:06:02]} 11. bxc6 {[%emt 0:06:45]} Nexc6 {[%emt 0:05:40]} 12. e4 {[%emt 0:10:52]} dxe3 {[%emt 0:02:06]} 13. Bxe3 {[%emt 0:00:34]} a6 {[%emt 0:02:53]} 14. Be2 {[%emt 0:01:02]} b5 {[%emt 0:01:56]} 15. Qg4 {[%emt 0:01:22]} Be6 {[%emt 0:10:45]} 16. Qg3 {[%emt 0:01:36]} Ne7 {[%emt 0:03:13]} 17. Nd4 {[%emt 0:03:47]} Bd5 {[%emt 0:05:13]} 18. h4 {[%emt 0:03:36]} Nac6 {[%emt 0:03:59]} 19. Nxc6 {[%emt 0:07:13]} Bxc6 {[%emt 0:02:00]} 20. Bc5 {[%emt 0:04:44]} Nf5 {[%emt 0:02:12]} 21. Qf4 {[%emt 0:02:07]} Nxh4 {[%emt 0:06:21]} 22. Rxh4 {[%emt 0:01:49]} Bxc5 {[%emt 0:00:30]} 23. e6 {[%emt 0:00:23]} Qf6 {[%emt 0:04:24]} 24. Qxf6 {[%emt 0:00:57]} gxf6 {[%emt 0:00:18]} 25. Ne4 {[%emt 0:01:41]} Be7 {[%emt 0:02:03]} 26. exf7+ {[%emt 0:03:24]} Kxf7 {[%emt 0:00:47]} 27. Ng3 {[%emt 0:05:36]} Rac8 {[%emt 0:02:29]} 28. a4 {[%emt 0:00:51]} bxa4 {[%emt 0:03:40]} 29. Bxa6 {[%emt 0:00:24]} Rb8 {[%emt 0:01:21]} 30. Bc4+ {[%emt 0:00:45]} Kf8 {[%emt 0:00:27]} 31. Bd3 {[%emt 0:01:54]} Bxg2 {[%emt 0:02:13]} 32. Raxa4 {[%emt 0:00:39]} Bc6 {[%emt 0:00:49]} 33. Ra7 {[%emt 0:02:30]} Bb4+ {[%emt 0:01:02]} 34. Kf1 {[%emt 0:01:48]} h5 {[%emt 0:00:57]} 35. Rxh5 {[%emt 0:03:34]} Rxh5 {[%emt 0:00:40]} 36. Nxh5 {[%emt 0:00:10]} Be7 {[%emt 0:00:39]} 37. Nf4 {[%emt 0:01:34]} Bb4 {[%emt 0:01:23]} 38. Ne6+ {[%emt 0:07:06]} Kg8 {[%emt 0:01:50]} 39. Rg7+ {[%emt 0:03:46]} Kh8 {[%emt 0:00:07]} 40. Rh7+ {[%emt 0:00:00]} Kg8 {[%emt 0:15:13]} 1/2-1/2

[Event "Faroese-ch Candidates 2025"]
[Site "Torshavn"]
[Date "2025.04.17"]
[Round "6.2"]
[White "Tummasarson, Flovin M."]
[Black "Justinussen, Sigurd B."]
[Result "1-0"]
[Annotator "NA RC"]
[ECO "B52"]
[WhiteElo "1837"]
[BlackElo "1948"]
[PlyCount "99"]
[EventDate "2025.04.11"]
[EventType "tourn"]
[EventCountry "FAI"]
[SourceTitle "playchess.com"]
[Source "ChessBase"]
[SourceQuality "1"]
[TimeControl "40/5400+30:900+30"]

1. e4 {[%emt 0:00:06]} c5 {[%emt 0:00:17]} 2. Nf3 {[%emt 0:00:15]} d6 {[%emt 0:00:43]} 3. Bb5+ {[%emt 0:00:56]} Bd7 {[%emt 0:03:32]} 4. Bxd7+ {[%emt 0:01:31]} Qxd7 {[%emt 0:01:16]} 5. c4 {[%emt 0:00:49]} Nf6 {[%emt 0:02:38]} 6. Nc3 {[%emt 0:03:23]} Nc6 {[%emt 0:02:27]} 7. d4 {[%emt 0:01:23]} cxd4 {[%emt 0:02:09]} 8. Nxd4 {[%emt 0:00:39]} e6 {[%emt 0:01:27]} 9. O-O {[%emt 0:06:19]} Be7 {[%emt 0:01:40]} 10. Be3 {[%emt 0:01:57]} O-O {[%emt 0:02:12]} 11. Rc1 {[%emt 0:05:06]} Rac8 {[%emt 0:07:11]} 12. b3 {[%emt 0:01:58]} Rfd8 {[%emt 0:04:24]} 13. f4 {[%emt 0:04:52]} b6 {[%emt 0:07:19]} 14. h3 {[%emt 0:06:19]} Qb7 {[%emt 0:06:21]} 15. Qf3 {[%emt 0:06:48]} Nb4 {[%emt 0:03:19]} 16. Rfd1 {[%emt 0:15:16]} Na6 {[%emt 0:03:55]} 17. e5 {[%emt 0:05:42]} Qxf3 {[%emt 0:01:06]} 18. Nxf3 {[%emt 0:00:35]} dxe5 {[%emt 0:01:54]} 19. fxe5 {[%emt 0:04:20]} Nd7 {[%emt 0:03:40]} 20. Nb5 {[%emt 0:00:10]} Ra8 {[%emt 0:01:12]} 21. Rd2 {[%emt 0:04:49]} Bb4 {[%emt 0:02:44]} 22. Rdd1 {[%emt 0:00:20]} Be7 {[%emt 0:00:15]} 23. Rd2 {[%emt 0:00:30]} Bb4 {[%emt 0:00:14]} 24. Rdd1 {[%emt 0:00:06]} Be7 {[%emt 0:00:05]} 25. a3 {[%emt 0:00:12]} Bc5 {[%emt 0:05:37]} 26. Kf2 {[%emt 0:00:57]} f6 {[%emt 0:02:55]} 27. b4 {[%emt 0:04:21]} Bxe3+ {[%emt 0:03:04]} 28. Kxe3 {[%emt 0:00:06]} Nxe5 {[%emt 0:01:20]} 29. Nxe5 {[%emt 0:00:19]} fxe5 {[%emt 0:01:33]} 30. Ke4 {[%emt 0:03:19]} Rf8 {[%emt 0:02:20]} 31. Rf1 {[%emt 0:03:04]} Rad8 {[%emt 0:01:11]} 32. Kxe5 {[%emt 0:01:43]} Nb8 {[%emt 0:02:58]} 33. Rxf8+ {[%emt 0:02:03]} Kxf8 {[%emt 0:00:52]} 34. Kxe6 {[%emt 0:00:48]} Nc6 {[%emt 0:00:14]} 35. Rf1+ {[%emt 0:00:28]} Kg8 {[%emt 0:00:33]} 36. Nd6 {[%emt 0:00:42]} Nd4+ {[%emt 0:01:43]} 37. Ke7 {[%emt 0:00:15]} Nc6+ {[%emt 0:00:43]} 38. Ke6 {[%emt 0:00:11]} Nd4+ {[%emt 0:00:06]} 39. Kd5 {[%emt 0:00:48]} Nc2 {[%emt 0:00:41]} 40. Rf3 {[%emt 0:00:00]} Ne1 {[%emt 0:00:00]} 41. Re3 {[%emt 0:13:46]} Nxg2 {[%emt 0:01:35]} 42. Re4 {[%emt 0:10:22]} g5 {[%emt 0:01:47]} 43. c5 {[%emt 0:01:26]} Nf4+ {[%emt 0:00:18]} 44. Kc6 {[%emt 0:00:52]} bxc5 {[%emt 0:00:54]} 45. bxc5 {[%emt 0:00:09]} Nd3 {[%emt 0:02:21]} 46. Re7 {[%emt 0:02:41]} h5 {[%emt 0:01:01]} 47. Kc7 {[%emt 0:01:37]} Rf8 {[%emt 0:00:26]} 48. c6 {[%emt 0:00:14]} Nf4 {[%emt 0:01:27]} 49. Kb7 {[%emt 0:02:21]} Nd5 {[%emt 0:01:29]} 50. Re5 {[%emt 0:00:17]} 1-0

[Event "Faroese-ch Candidates 2025"]
[Site "Torshavn"]
[Date "2025.04.17"]
[Round "6.3"]
[White "Hojsted, Ingi"]
[Black "Logv, Hanus a"]
[Result "1-0"]
[Annotator "NA RC"]
[ECO "C84"]
[WhiteElo "1841"]
[BlackElo "1744"]
[PlyCount "74"]
[EventDate "2025.04.11"]
[EventType "tourn"]
[EventCountry "FAI"]
[SourceTitle "playchess.com"]
[Source "ChessBase"]
[SourceQuality "1"]
[TimeControl "40/5400+30:900+30"]

1. e4 {[%emt 0:00:03]} e5 {[%emt 0:01:57]} 2. Nf3 {[%emt 0:00:06]} Nc6 {[%emt 0:00:04]} 3. Bb5 {[%emt 0:00:12]} d6 {[%emt 0:00:23]} 4. c3 {[%emt 0:00:35]} Bd7 {[%emt 0:00:29]} 5. O-O {[%emt 0:00:30]} Nf6 {[%emt 0:00:14]} 6. Re1 {[%emt 0:00:36]} Be7 {[%emt 0:00:08]} 7. d3 {[%emt 0:00:27]} O-O {[%emt 0:00:32]} 8. Nbd2 {[%emt 0:00:00]} a6 {[%emt 0:00:53]} 9. Ba4 {[%emt 0:00:27]} Bg4 {[%emt 0:01:19]} 10. h3 {[%emt 0:00:20]} Bh5 {[%emt 0:00:11]} 11. Nf1 {[%emt 0:00:29]} h6 {[%emt 0:02:24]} 12. Ng3 {[%emt 0:00:11]} Bg6 {[%emt 0:00:34]} 13. Nh4 {[%emt 0:01:53]} Bh7 {[%emt 0:02:10]} 14. Nhf5 {[%emt 0:01:48]} Bxf5 {[%emt 0:03:42]} 15. Nxf5 {[%emt 0:00:52]} Kh7 {[%emt 0:05:18]} 16. f4 {[%emt 0:04:56]} Ng8 {[%emt 0:04:47]} 17. fxe5 {[%emt 0:11:36]} Nxe5 {[%emt 0:01:17]} 18. d4 {[%emt 0:00:48]} Ng6 {[%emt 0:01:24]} 19. Bc2 {[%emt 0:03:29]} Bg5 {[%emt 0:04:40]} 20. Qf3 {[%emt 0:04:10]} Bxc1 {[%emt 0:05:15]} 21. Raxc1 {[%emt 0:00:11]} Kh8 {[%emt 0:01:00]} 22. g3 {[%emt 0:05:14]} c6 {[%emt 0:11:26]} 23. h4 {[%emt 0:01:18]} Qf6 {[%emt 0:02:17]} 24. Qd3 {[%emt 0:11:02]} Rfe8 {[%emt 0:15:02]} 25. Rf1 {[%emt 0:03:21]} Qe6 {[%emt 0:07:38]} 26. Rce1 {[%emt 0:04:08]} Qd7 {[%emt 0:09:14]} 27. Qf3 {[%emt 0:06:51]} Nf6 {[%emt 0:04:55]} 28. Nxg7 {[%emt 0:02:36]} Kxg7 {[%emt 0:10:13]} 29. Qxf6+ {[%emt 0:00:08]} Kg8 {[%emt 0:00:08]} 30. h5 {[%emt 0:04:56]} Re6 {[%emt 0:01:50]} 31. Qf5 {[%emt 0:01:00]} Nf8 {[%emt 0:00:28]} 32. e5 {[%emt 0:07:06]} d5 {[%emt 0:02:39]} 33. Qg4+ {[%emt 0:00:30]} Kh8 {[%emt 0:00:31]} 34. Bf5 {[%emt 0:00:10]} Qe7 {[%emt 0:00:22]} 35. Bxe6 {[%emt 0:00:27]} fxe6 {[%emt 0:01:00]} 36. Rf6 {[%emt 0:00:42]} Qg7 {[%emt 0:01:00]} 37. Qf4 {[%emt 0:01:50]} Kh7 {[%emt 0:00:18]} 1-0

[Event "Faroese-ch Candidates 2025"]
[Site "Torshavn"]
[Date "2025.04.17"]
[Round "6.4"]
[White "Davidsen, Rokur"]
[Black "Hojgaard, Brandur"]
[Result "0-1"]
[Annotator "NA RC"]
[ECO "C06"]
[WhiteElo "1824"]
[BlackElo "1861"]
[PlyCount "28"]
[EventDate "2025.04.11"]
[EventType "tourn"]
[EventCountry "FAI"]
[SourceTitle "playchess.com"]
[Source "ChessBase"]
[SourceQuality "1"]
[TimeControl "40/5400+30:900+30"]

1. e4 {[%emt 0:02:15]} e6 {[%emt 0:00:02]} 2. d4 {[%emt 0:00:02]} d5 {[%emt 0:00:03]} 3. Bd3 {[%emt 0:00:02]} Nf6 {[%emt 0:00:08]} 4. e5 {[%emt 0:00:12]} Nfd7 {[%emt 0:00:20]} 5. Nd2 {[%emt 0:00:10]} c5 {[%emt 0:00:04]} 6. c3 {[%emt 0:00:03]} Nc6 {[%emt 0:00:02]} 7. Ne2 {[%emt 0:00:03]} cxd4 {[%emt 0:00:04]} 8. cxd4 {[%emt 0:00:03]} f6 {[%emt 0:00:05]} 9. Nf4 {[%emt 0:00:10]} Nxd4 {[%emt 0:00:22]} 10. Qh5+ {[%emt 0:00:05]} Ke7 {[%emt 0:00:07]} 11. Ng6+ {[%emt 0:00:02]} hxg6 {[%emt 0:00:06]} 12. exf6+ {[%emt 0:00:03]} Nxf6 {[%emt 0:00:07]} 13. Qxh8 {[%emt 0:00:03]} Kf7 {[%emt 0:00:06]} 14. Nb3 {[%emt 0:00:03]} Bb4+ {[%emt 0:00:14]} 0-1

[Event "Faroese-ch Candidates 2025"]
[Site "Torshavn"]
[Date "2025.04.18"]
[Round "7.1"]
[White "Hojgaard, Brandur"]
[Black "Dahl, Karl M"]
[Result "1-0"]
[Annotator "NA"]
[ECO "D00"]
[WhiteElo "1861"]
[BlackElo "1772"]
[PlyCount "87"]
[EventDate "2025.04.11"]
[EventType "tourn"]
[EventCountry "FAI"]
[SourceTitle "playchess.com"]
[Source "ChessBase"]
[SourceQuality "1"]
[TimeControl "40/5400+30:900+30"]

1. d4 {[%emt 0:00:15]} Nf6 {[%emt 0:00:08]} 2. Bf4 {[%emt 0:00:06]} g6 {[%emt 0:00:07]} 3. Nc3 {[%emt 0:01:42]} d5 {[%emt 0:00:14]} 4. Qd2 {[%emt 0:03:25]} Bg7 {[%emt 0:01:53]} 5. Bh6 {[%emt 0:00:44]} O-O {[%emt 0:01:58]} 6. Nf3 {[%emt 0:04:02]} c6 {[%emt 0:04:55]} 7. Bxg7 {[%emt 0:02:20]} Kxg7 {[%emt 0:00:44]} 8. h4 {[%emt 0:02:41]} h5 {[%emt 0:06:50]} 9. Ne5 {[%emt 0:02:29]} c5 {[%emt 0:04:49]} 10. e3 {[%emt 0:03:04]} Nc6 {[%emt 0:02:02]} 11. O-O-O {[%emt 0:12:09]} cxd4 {[%emt 0:04:25]} 12. exd4 {[%emt 0:01:18]} Bf5 {[%emt 0:00:37]} 13. f3 {[%emt 0:03:15]} Rc8 {[%emt 0:05:57]} 14. g4 {[%emt 0:24:42]} hxg4 {[%emt 0:07:06]} 15. fxg4 {[%emt 0:01:44]} Nxg4 {[%emt 0:02:42]} 16. Nxg4 {[%emt 0:02:39]} Bxg4 {[%emt 0:00:36]} 17. Be2 {[%emt 0:03:03]} Bxe2 {[%emt 0:02:12]} 18. Qxe2 {[%emt 0:01:21]} Rh8 {[%emt 0:05:24]} 19. h5 {[%emt 0:02:36]} Qd6 {[%emt 0:08:00]} 20. Qg4 {[%emt 0:01:39]} Rcf8 {[%emt 0:05:41]} 21. Rhg1 {[%emt 0:11:22]} Rh6 {[%emt 0:03:03]} 22. hxg6 {[%emt 0:03:43]} fxg6 {[%emt 0:03:43]} 23. Rdf1 {[%emt 0:02:00]} Rf6 {[%emt 0:02:05]} 24. Ne2 {[%emt 0:03:09]} Qe6 {[%emt 0:04:06]} 25. Qg2 {[%emt 0:02:39]} Qe3+ {[%emt 0:06:57]} 26. Kb1 {[%emt 0:00:40]} Nxd4 {[%emt 0:00:53]} 27. Rxf6 {[%emt 0:01:02]} exf6 {[%emt 0:00:23]} 28. Nc3 {[%emt 0:00:48]} Qe5 {[%emt 0:05:51]} 29. a3 {[%emt 0:01:21]} g5 {[%emt 0:00:56]} 30. Qg4 {[%emt 0:01:50]} Kg6 {[%emt 0:01:25]} 31. Qd7 {[%emt 0:00:57]} Rh7 {[%emt 0:00:27]} 32. Qg4 {[%emt 0:00:43]} Ne6 {[%emt 0:01:16]} 33. Qg2 {[%emt 0:01:01]} Nf4 {[%emt 0:01:04]} 34. Qd2 {[%emt 0:00:22]} d4 {[%emt 0:01:11]} 35. Nd1 {[%emt 0:00:29]} f5 {[%emt 0:02:06]} 36. Re1 {[%emt 0:00:15]} Qd5 {[%emt 0:00:28]} 37. Qb4 {[%emt 0:00:30]} Rh1 {[%emt 0:01:41]} 38. Rxh1 {[%emt 0:00:46]} Qxh1 {[%emt 0:00:04]} 39. Qd6+ {[%emt 0:00:16]} Kh5 {[%emt 0:00:32]} 40. Qxd4 {[%emt 0:00:00]} Qe1 {[%emt 0:00:00]} 41. Ka2 {[%emt 0:01:55]} Qe6+ {[%emt 0:08:39]} 42. Kb1 {[%emt 0:00:54]} Kh4 {[%emt 0:01:14]} 43. Ne3 {[%emt 0:01:19]} g4 {[%emt 0:01:39]} 44. Qxf4 {[%emt 0:00:19]} 1-0

[Event "Faroese-ch Candidates 2025"]
[Site "Torshavn"]
[Date "2025.04.18"]
[Round "7.2"]
[White "Logv, Hanus a"]
[Black "Davidsen, Rokur"]
[Result "0-1"]
[Annotator "NA"]
[ECO "B70"]
[WhiteElo "1744"]
[BlackElo "1824"]
[PlyCount "82"]
[EventDate "2025.04.11"]
[EventType "tourn"]
[EventCountry "FAI"]
[SourceTitle "playchess.com"]
[Source "ChessBase"]
[SourceQuality "1"]
[TimeControl "40/5400+30:900+30"]

1. e4 {[%emt 0:00:05]} c5 {[%emt 0:00:05]} 2. Nf3 {[%emt 0:00:05]} d6 {[%emt 0:00:07]} 3. d4 {[%emt 0:00:10]} cxd4 {[%emt 0:00:07]} 4. Nxd4 {[%emt 0:00:09]} Nf6 {[%emt 0:00:11]} 5. Nc3 {[%emt 0:00:29]} g6 {[%emt 0:00:11]} 6. Bc4 {[%emt 0:02:56]} Bg7 {[%emt 0:00:10]} 7. O-O {[%emt 0:00:15]} O-O {[%emt 0:00:12]} 8. Bb3 {[%emt 0:01:09]} Nbd7 {[%emt 0:01:53]} 9. f3 {[%emt 0:02:12]} Nc5 {[%emt 0:01:12]} 10. Be3 {[%emt 0:01:00]} Bd7 {[%emt 0:04:55]} 11. Qd2 {[%emt 0:02:57]} Re8 {[%emt 0:04:36]} 12. Bh6 {[%emt 0:03:03]} Bh8 {[%emt 0:02:50]} 13. Nf5 {[%emt 0:09:39]} Nxb3 {[%emt 0:11:32]} 14. axb3 {[%emt 0:01:19]} d5 {[%emt 0:04:41]} 15. Ng3 {[%emt 0:05:26]} dxe4 {[%emt 0:08:27]} 16. Ngxe4 {[%emt 0:00:52]} Bf5 {[%emt 0:02:50]} 17. Qxd8 {[%emt 0:14:21]} Raxd8 {[%emt 0:07:34]} 18. Be3 {[%emt 0:04:40]} a6 {[%emt 0:02:32]} 19. Rad1 {[%emt 0:03:15]} Nxe4 {[%emt 0:03:49]} 20. fxe4 {[%emt 0:01:56]} Bxc3 {[%emt 0:03:29]} 21. exf5 {[%emt 0:00:45]} Bxb2 {[%emt 0:00:46]} 22. fxg6 {[%emt 0:00:39]} hxg6 {[%emt 0:00:18]} 23. c4 {[%emt 0:02:45]} Kg7 {[%emt 0:02:09]} 24. Bb6 {[%emt 0:02:07]} Rd6 {[%emt 0:03:12]} 25. c5 {[%emt 0:10:30]} Bd4+ {[%emt 0:10:56]} 26. Kh1 {[%emt 0:00:18]} Rd5 {[%emt 0:00:19]} 27. c6 {[%emt 0:03:42]} e5 {[%emt 0:02:00]} 28. cxb7 {[%emt 0:07:56]} Rb8 {[%emt 0:01:10]} 29. Bc7 {[%emt 0:08:30]} Rxb7 {[%emt 0:00:14]} 30. Bxe5+ {[%emt 0:00:44]} Rxe5 {[%emt 0:00:13]} 31. Rxd4 {[%emt 0:00:05]} Rxb3 {[%emt 0:00:17]} 32. Rd7 {[%emt 0:00:45]} Rf5 {[%emt 0:00:10]} 33. Ra1 {[%emt 0:02:11]} Rb2 {[%emt 0:00:38]} 34. Ra7 {[%emt 0:01:39]} Rff2 {[%emt 0:00:51]} 35. Rg1 {[%emt 0:01:39]} Ra2 {[%emt 0:00:17]} 36. h3 {[%emt 0:00:12]} Kh6 {[%emt 0:01:13]} 37. Kh2 {[%emt 0:00:40]} f5 {[%emt 0:01:44]} 38. Kg3 {[%emt 0:03:02]} f4+ {[%emt 0:04:34]} 39. Kg4 {[%emt 0:02:51]} Ra3 {[%emt 0:00:59]} 40. Rf7 {[%emt 0:00:00]} Rg3+ {[%emt 0:00:30]} 41. Kh4 g5# {[%emt 0:16:18]} 0-1

[Event "Faroese-ch Candidates 2025"]
[Site "Torshavn"]
[Date "2025.04.18"]
[Round "7.3"]
[White "Justinussen, Sigurd B."]
[Black "Hojsted, Ingi"]
[Result "0-1"]
[Annotator "NA"]
[ECO "A53"]
[WhiteElo "1948"]
[BlackElo "1841"]
[PlyCount "138"]
[EventDate "2025.04.11"]
[EventType "tourn"]
[EventCountry "FAI"]
[SourceTitle "playchess.com"]
[Source "ChessBase"]
[SourceQuality "1"]
[TimeControl "40/5400+30:900+30"]

1. d4 {[%emt 0:00:05]} d6 {[%emt 0:00:06]} 2. c4 {[%emt 0:00:07]} Nf6 {[%emt 0:00:20]} 3. Nc3 {[%emt 0:01:07]} c6 {[%emt 0:00:07]} 4. Nf3 {[%emt 0:01:13]} Bg4 {[%emt 0:00:55]} 5. e3 {[%emt 0:03:40]} Nbd7 {[%emt 0:00:27]} 6. Be2 {[%emt 0:00:22]} e5 {[%emt 0:00:53]} 7. O-O {[%emt 0:00:23]} Be7 {[%emt 0:00:25]} 8. b4 {[%emt 0:03:30]} O-O {[%emt 0:01:21]} 9. a3 {[%emt 0:03:58]} e4 {[%emt 0:04:02]} 10. Nd2 {[%emt 0:00:39]} Bxe2 {[%emt 0:00:22]} 11. Qxe2 {[%emt 0:02:42]} d5 {[%emt 0:00:15]} 12. c5 {[%emt 0:05:44]} Ne8 {[%emt 0:03:34]} 13. f3 {[%emt 0:01:04]} f5 {[%emt 0:00:50]} 14. Rb1 {[%emt 0:02:48]} a6 {[%emt 0:09:26]} 15. Nb3 {[%emt 0:04:23]} b6 {[%emt 0:11:57]} 16. cxb6 {[%emt 0:03:01]} Nxb6 {[%emt 0:02:10]} 17. Na5 {[%emt 0:00:22]} Qd7 {[%emt 0:00:55]} 18. Qc2 {[%emt 0:02:21]} Nd6 {[%emt 0:03:09]} 19. Na4 {[%emt 0:05:00]} Nxa4 {[%emt 0:04:40]} 20. Qxa4 {[%emt 0:00:15]} Rfc8 {[%emt 0:01:17]} 21. Qc2 {[%emt 0:05:59]} Bd8 {[%emt 0:03:18]} 22. Nb3 {[%emt 0:02:29]} Bb6 {[%emt 0:03:58]} 23. Bb2 {[%emt 0:03:47]} Nc4 {[%emt 0:01:26]} 24. Rbe1 {[%emt 0:01:19]} a5 {[%emt 0:06:40]} 25. Nd2 {[%emt 0:02:11]} Nd6 {[%emt 0:06:24]} 26. Bc3 {[%emt 0:06:01]} a4 {[%emt 0:02:49]} 27. Re2 {[%emt 0:08:24]} h6 {[%emt 0:03:15]} 28. fxe4 {[%emt 0:04:01]} fxe4 {[%emt 0:03:26]} 29. Ref2 {[%emt 0:01:33]} Re8 {[%emt 0:07:18]} 30. Qd1 {[%emt 0:02:02]} g6 {[%emt 0:01:44]} 31. Qe1 {[%emt 0:01:58]} Nf5 {[%emt 0:01:43]} 32. Qe2 {[%emt 0:02:26]} Bc7 {[%emt 0:03:44]} 33. Qg4 {[%emt 0:04:06]} Qd6 {[%emt 0:05:07]} 34. Rxf5 {[%emt 0:01:05]} Qxh2+ {[%emt 0:00:40]} 35. Kf2 {[%emt 0:00:08]} Qg3+ {[%emt 0:02:59]} 36. Qxg3 {[%emt 0:00:50]} Bxg3+ {[%emt 0:00:03]} 37. Kxg3 {[%emt 0:00:27]} gxf5 {[%emt 0:00:02]} 38. Rxf5 {[%emt 0:00:22]} Rf8 {[%emt 0:02:31]} 39. Rh5 {[%emt 0:02:31]} Rf6 {[%emt 0:01:31]} 40. b5 {[%emt 0:00:00]} Raf8 {[%emt 0:00:00]} 41. bxc6 {[%emt 0:04:52]} Rxc6 {[%emt 0:05:01]} 42. Bb4 {[%emt 0:00:27]} Rg6+ {[%emt 0:00:32]} 43. Kh3 {[%emt 0:00:42]} Rf2 {[%emt 0:00:52]} 44. g4 {[%emt 0:00:49]} Re2 {[%emt 0:01:09]} 45. Rxd5 {[%emt 0:01:00]} Rxe3+ {[%emt 0:00:38]} 46. Kh4 {[%emt 0:00:58]} Re2 {[%emt 0:02:48]} 47. Re5 {[%emt 0:02:02]} e3 {[%emt 0:02:35]} 48. Nf1 {[%emt 0:01:51]} Kg7 {[%emt 0:04:52]} 49. Nxe3 {[%emt 0:00:37]} Rf2 {[%emt 0:01:46]} 50. d5 {[%emt 0:01:53]} h5 {[%emt 0:01:16]} 51. Rxh5 {[%emt 0:00:33]} Rh2+ {[%emt 0:00:21]} 52. Kg3 {[%emt 0:00:23]} Rxh5 {[%emt 0:00:10]} 53. Kf4 {[%emt 0:00:17]} Rh1 {[%emt 0:02:05]} 54. d6 {[%emt 0:00:27]} Kf7 {[%emt 0:00:52]} 55. d7 {[%emt 0:00:47]} Rg8 {[%emt 0:00:47]} 56. Ba5 {[%emt 0:00:38]} Ke7 {[%emt 0:00:33]} 57. d8=Q+ {[%emt 0:00:27]} Rxd8 {[%emt 0:00:04]} 58. Bxd8+ {[%emt 0:00:16]} Kxd8 {[%emt 0:00:01]} 59. g5 {[%emt 0:00:44]} Ke8 {[%emt 0:01:15]} 60. Kf5 {[%emt 0:00:37]} Rh3 {[%emt 0:00:16]} 61. Kf4 {[%emt 0:01:04]} Kf7 {[%emt 0:00:11]} 62. Ke4 {[%emt 0:00:26]} Kg6 {[%emt 0:00:22]} 63. Kd4 {[%emt 0:00:12]} Kxg5 {[%emt 0:00:33]} 64. Nc4 {[%emt 0:00:10]} Rb3 {[%emt 0:00:50]} 65. Nd2 {[%emt 0:00:38]} Rxa3 {[%emt 0:00:17]} 66. Kc4 {[%emt 0:00:10]} Rh3 {[%emt 0:00:32]} 67. Ne4+ {[%emt 0:01:17]} Kf4 {[%emt 0:00:48]} 68. Nc3 {[%emt 0:00:11]} a3 {[%emt 0:00:24]} 69. Kb4 {[%emt 0:00:17]} Ke5 {[%emt 0:00:41]} 0-1

[Event "Faroese-ch Candidates 2025"]
[Site "Torshavn"]
[Date "2025.04.18"]
[Round "7.4"]
[White "Lamhauge, Eydun"]
[Black "Tummasarson, Flovin M."]
[Result "0-1"]
[Annotator "NA"]
[ECO "C54"]
[WhiteElo "1829"]
[BlackElo "1837"]
[PlyCount "64"]
[EventDate "2025.04.11"]
[EventType "tourn"]
[EventCountry "FAI"]
[SourceTitle "playchess.com"]
[Source "ChessBase"]
[SourceQuality "1"]
[TimeControl "40/5400+30:900+30"]

1. e4 {[%emt 0:00:10]} e5 {[%emt 0:00:06]} 2. Nf3 {[%emt 0:00:21]} Nc6 {[%emt 0:00:06]} 3. Bc4 {[%emt 0:00:41]} Bc5 {[%emt 0:00:28]} 4. c3 {[%emt 0:00:28]} Nf6 {[%emt 0:00:47]} 5. d4 {[%emt 0:00:42]} exd4 {[%emt 0:01:20]} 6. cxd4 {[%emt 0:00:51]} Bb4+ {[%emt 0:00:56]} 7. Nc3 {[%emt 0:01:19]} Nxe4 {[%emt 0:04:01]} 8. O-O {[%emt 0:00:20]} Bxc3 {[%emt 0:01:02]} 9. d5 {[%emt 0:03:46]} Ba5 {[%emt 0:13:32]} 10. dxc6 {[%emt 0:04:14]} bxc6 {[%emt 0:00:32]} 11. Bxf7+ {[%emt 0:11:21]} Kxf7 {[%emt 0:07:04]} 12. Qa4 {[%emt 0:05:31]} Re8 {[%emt 0:03:35]} 13. Qxa5 {[%emt 0:02:18]} d5 {[%emt 0:08:28]} 14. Bf4 {[%emt 0:01:54]} Qf6 {[%emt 0:03:42]} 15. Bxc7 {[%emt 0:10:47]} Bg4 {[%emt 0:02:35]} 16. Ne5+ {[%emt 0:16:51]} Rxe5 {[%emt 0:00:57]} 17. Bxe5 {[%emt 0:00:33]} Qxe5 {[%emt 0:00:06]} 18. Qb4 {[%emt 0:03:45]} Rb8 {[%emt 0:00:54]} 19. Qa4 {[%emt 0:01:37]} Qxb2 {[%emt 0:18:12]} 20. Qxc6 {[%emt 0:06:58]} Be6 {[%emt 0:00:54]} 21. Qc7+ {[%emt 0:01:39]} Kg6 {[%emt 0:02:01]} 22. Qf4 {[%emt 0:01:40]} Rb6 {[%emt 0:01:27]} 23. Rfd1 {[%emt 0:06:22]} Qf6 {[%emt 0:01:56]} 24. Qe3 {[%emt 0:04:10]} Qg5 {[%emt 0:04:03]} 25. Qd3 {[%emt 0:03:26]} Rb2 {[%emt 0:01:07]} 26. Rf1 {[%emt 0:01:20]} Rd2 {[%emt 0:02:13]} 27. Qb5 {[%emt 0:03:40]} Bh3 {[%emt 0:04:50]} 28. Qe8+ {[%emt 0:00:23]} Kh6 {[%emt 0:00:15]} 29. g3 {[%emt 0:01:10]} Qf6 {[%emt 0:02:42]} 30. Rac1 {[%emt 0:01:59]} Rxf2 {[%emt 0:00:19]} 31. Rfe1 {[%emt 0:00:31]} Rg2+ {[%emt 0:00:20]} 32. Kh1 {[%emt 0:00:17]} Nf2# {[%emt 0:00:04]} 0-1